[Event "Late-Titled-Tuesday-Blitz-December-26-2023"]
[Site "Chess.com"]
[Date "2023.12.26"]
[Round "9"]
[White "MightyGMpretender"]
[Black "Camilla_Lee"]
[Result "1-0"]
[WhiteElo "2755"]
[BlackElo "2608"]
[TimeControl "180+1"]
[EndTime "15:45:04 PST"]
[Termination "MightyGMpretender won by resignation"]

1. Nf3 {[%clk 0:02:51.1]} 1... d5 {[%clk 0:03:00]} 2. b3 {[%clk 0:02:49.8]} 2...
Bg4 {[%clk 0:02:57.9]} 3. Bb2 {[%clk 0:02:49.5]} 3... f6 {[%clk 0:02:57.5]} 4.
d4 {[%clk 0:02:47.1]} 4... Nd7 {[%clk 0:02:51.6]} 5. Nbd2 {[%clk 0:02:44.8]}
5... e6 {[%clk 0:02:52]} 6. e4 {[%clk 0:02:45]} 6... c6 {[%clk 0:02:36.2]} 7.
Be2 {[%clk 0:02:44.4]} 7... Bd6 {[%clk 0:02:35.8]} 8. O-O {[%clk 0:02:44.5]}
8... Ne7 {[%clk 0:02:36]} 9. c4 {[%clk 0:02:34.6]} 9... O-O {[%clk 0:02:34.3]}
10. Re1 {[%clk 0:02:31.9]} 10... Bb4 {[%clk 0:02:26.2]} 11. a3 {[%clk
0:02:27.1]} 11... Bxd2 {[%clk 0:02:11]} 12. Nxd2 {[%clk 0:02:26.7]} 12... Bxe2
{[%clk 0:02:11.1]} 13. Qxe2 {[%clk 0:02:27.6]} 13... Ng6 {[%clk 0:01:56.2]} 14.
g3 {[%clk 0:02:16.1]} 14... dxe4 {[%clk 0:01:43.5]} 15. Nxe4 {[%clk 0:02:16.1]}
15... e5 {[%clk 0:01:43.1]} 16. Rad1 {[%clk 0:02:15.9]} 16... Qc7 {[%clk
0:01:40.3]} 17. d5 {[%clk 0:02:11.2]} 17... cxd5 {[%clk 0:01:40.3]} 18. Rxd5
{[%clk 0:02:11.8]} 18... Nb6 {[%clk 0:01:39.2]} 19. Rc5 {[%clk 0:02:08.6]} 19...
Qe7 {[%clk 0:01:38.4]} 20. Rb5 {[%clk 0:02:06.9]} 20... Rad8 {[%clk 0:01:31.1]}
21. Bc3 {[%clk 0:02:04.5]} 21... Rfe8 {[%clk 0:01:26.6]} 22. Ba5 {[%clk
0:02:02.4]} 22... Rd4 {[%clk 0:01:13.7]} 23. Bc3 {[%clk 0:01:52.8]} 23... Rd7
{[%clk 0:01:10.8]} 24. Nc5 {[%clk 0:01:49]} 24... Rc7 {[%clk 0:01:10.6]} 25. Bb4
{[%clk 0:01:49.6]} 25... Qf7 {[%clk 0:01:07.9]} 26. Ne4 {[%clk 0:01:45.9]} 26...
Rd8 {[%clk 0:00:59.9]} 27. c5 {[%clk 0:01:42]} 27... Nd5 {[%clk 0:00:57.7]} 28.
Ba5 {[%clk 0:01:42.6]} 28... b6 {[%clk 0:00:53.8]} 29. cxb6 {[%clk 0:01:38.8]}
29... axb6 {[%clk 0:00:52.4]} 30. Bxb6 {[%clk 0:01:39.1]} 30... Nxb6 {[%clk
0:00:52.7]} 31. Rxb6 {[%clk 0:01:39.5]} 31... Qd5 {[%clk 0:00:38.5]} 32. a4
{[%clk 0:01:33.8]} 32... f5 {[%clk 0:00:30.6]} 33. Ng5 {[%clk 0:01:33.7]} 33...
Rcd7 {[%clk 0:00:22.8]} 34. Rb5 {[%clk 0:01:28.4]} 34... Qd3 {[%clk 0:00:20.2]}
35. Qxd3 {[%clk 0:01:26.3]} 35... Rxd3 {[%clk 0:00:21.1]} 36. a5 {[%clk
0:01:26.6]} 36... e4 {[%clk 0:00:21.2]} 37. a6 {[%clk 0:01:22]} 37... Ra8 {[%clk
0:00:18.9]} 38. Ra1 {[%clk 0:01:22.6]} 38... Rd7 {[%clk 0:00:17.3]} 39. a7
{[%clk 0:01:23]} 39... Rdxa7 {[%clk 0:00:10]} 40. Rxa7 {[%clk 0:01:23.4]} 40...
Rxa7 {[%clk 0:00:10.9]} 41. Rb8+ {[%clk 0:01:23.9]} 41... Nf8 {[%clk 0:00:11.6]}
42. Ne6 {[%clk 0:01:24.4]} 42... Rf7 {[%clk 0:00:09]} 43. b4 {[%clk 0:01:25.1]}
43... Rf6 {[%clk 0:00:07.1]} 44. Nxf8 {[%clk 0:01:05.9]} 44... Rxf8 {[%clk
0:00:08]} 45. Rxf8+ {[%clk 0:01:06.4]} 45... Kxf8 {[%clk 0:00:08.9]} 46. Kf1
{[%clk 0:01:05.8]} 46... g5 {[%clk 0:00:09.2]} 47. Ke2 {[%clk 0:01:05.6]} 47...
f4 {[%clk 0:00:09.8]} 48. gxf4 {[%clk 0:01:04.1]} 48... gxf4 {[%clk 0:00:10.7]}
49. Kd2 {[%clk 0:01:04.8]} 49... Ke7 {[%clk 0:00:10.4]} 50. Kc3 {[%clk
0:01:05.5]} 50... Ke6 {[%clk 0:00:08]} 51. Kd4 {[%clk 0:01:05.7]} 51... Kf5
{[%clk 0:00:07.9]} 52. b5 {[%clk 0:01:06]} 52... e3 {[%clk 0:00:05.7]} 53. fxe3
{[%clk 0:01:06.1]} 53... f3 {[%clk 0:00:06.4]} 54. Kd3 {[%clk 0:01:03.2]} 54...
Kg4 {[%clk 0:00:07]} 55. b6 {[%clk 0:01:03.2]} 55... Kh3 {[%clk 0:00:06.3]} 56.
b7 {[%clk 0:01:03.8]} 56... f2 {[%clk 0:00:06.9]} 57. b8=Q {[%clk 0:00:58.1]}
57... f1=Q+ {[%clk 0:00:07.2]} 58. Ke4 {[%clk 0:00:58.7]} 58... Qg2+ {[%clk
0:00:06.9]} 59. Kd3 {[%clk 0:00:52.3]} 59... Qf1+ {[%clk 0:00:05.4]} 60. Kd4
{[%clk 0:00:47.4]} 60... Qd1+ {[%clk 0:00:05.7]} 61. Ke5 {[%clk 0:00:45.2]}
61... Qe2 {[%clk 0:00:03.9]} 62. Kd4 {[%clk 0:00:23.2]} 62... Qd2+ {[%clk
0:00:03.2]} 63. Ke4 {[%clk 0:00:23.7]} 63... Qg2+ {[%clk 0:00:03.1]} 64. Kf5
{[%clk 0:00:20.8]} 64... Qf3+ {[%clk 0:00:02.1]} 65. Qf4 {[%clk 0:00:21.1]}
65... Qd5+ {[%clk 0:00:02.7]} 66. Kf6 {[%clk 0:00:20.6]} 66... Qd8+ {[%clk
0:00:02.8]} 67. Kg7 {[%clk 0:00:20.8]} 67... Qe7+ {[%clk 0:00:02.8]} 68. Kh6
{[%clk 0:00:21.3]} 68... Kg2 {[%clk 0:00:02.6]} 69. h4 {[%clk 0:00:20.7]} 69...
Kh1 {[%clk 0:00:02.5]} 70. Qg5 {[%clk 0:00:19.9]} 70... Qf7 {[%clk 0:00:02.1]}
71. h5 {[%clk 0:00:15.8]} 71... Qd7 {[%clk 0:00:01.8]} 72. Qe5 {[%clk 0:00:15]}
72... Qf7 {[%clk 0:00:02]} 73. e4 {[%clk 0:00:15.2]} 73... Qd7 {[%clk 0:00:02]}
74. Qf5 {[%clk 0:00:15.8]} 74... Qe7 {[%clk 0:00:01.9]} 75. e5 {[%clk
0:00:15.9]} 75... Kg2 {[%clk 0:00:02.5]} 76. e6 {[%clk 0:00:16.2]} 76... Kg3
{[%clk 0:00:02.6]} 77. Qf7 {[%clk 0:00:16.7]} 77... Qh4 {[%clk 0:00:01.6]} 78.
Kxh7 {[%clk 0:00:16.9]} 78... Qe4+ {[%clk 0:00:01.1]} 79. Qg6+ {[%clk
0:00:11.7]} 1-0

[Event "Late-Titled-Tuesday-Blitz-December-26-2023"]
[Site "Chess.com"]
[Date "2023.12.26"]
[Round "9"]
[White "SEBAZZANO"]
[Black "Slovak_fighter2000"]
[Result "0-1"]
[WhiteElo "2269"]
[BlackElo "2478"]
[TimeControl "180+1"]
[EndTime "15:45:58 PST"]
[Termination "Slovak_fighter2000 won on time"]

1. d4 {[%clk 0:03:00.5]} 1... e5 {[%clk 0:02:59]} 2. e3 {[%clk 0:02:58.1]} 2...
Nc6 {[%clk 0:02:57.2]} 3. dxe5 {[%clk 0:02:50.9]} 3... Nxe5 {[%clk 0:02:55.6]}
4. Nf3 {[%clk 0:02:50.6]} 4... Nxf3+ {[%clk 0:02:53.9]} 5. Qxf3 {[%clk
0:02:51.5]} 5... d5 {[%clk 0:02:54.6]} 6. Bd3 {[%clk 0:02:46.4]} 6... Nf6 {[%clk
0:02:53.6]} 7. h3 {[%clk 0:02:46.3]} 7... Bd6 {[%clk 0:02:52.6]} 8. O-O {[%clk
0:02:45.8]} 8... Qe7 {[%clk 0:02:52.6]} 9. Nc3 {[%clk 0:02:43.8]} 9... c6 {[%clk
0:02:52.1]} 10. e4 {[%clk 0:02:40.4]} 10... d4 {[%clk 0:02:50.7]} 11. Ne2 {[%clk
0:02:40]} 11... c5 {[%clk 0:02:48.6]} 12. c3 {[%clk 0:02:38.9]} 12... dxc3
{[%clk 0:02:43.5]} 13. Nxc3 {[%clk 0:02:38.6]} 13... O-O {[%clk 0:02:43.6]} 14.
Bg5 {[%clk 0:02:35.8]} 14... Qe5 {[%clk 0:02:43.2]} 15. Qg3 {[%clk 0:02:24.6]}
15... Qxg3 {[%clk 0:02:38.7]} 16. fxg3 {[%clk 0:02:25.5]} 16... Be5 {[%clk
0:02:34.9]} 17. Bf4 {[%clk 0:02:15.1]} 17... Bd4+ {[%clk 0:02:20.5]} 18. Kh2
{[%clk 0:02:13.8]} 18... Be6 {[%clk 0:02:20]} 19. a3 {[%clk 0:01:38.9]} 19...
Rad8 {[%clk 0:02:14.9]} 20. Bc2 {[%clk 0:01:11.5]} 20... a6 {[%clk 0:02:01.1]}
21. Rae1 {[%clk 0:00:48]} 21... Rfe8 {[%clk 0:01:54]} 22. Be3 {[%clk 0:00:30.6]}
22... Bxe3 {[%clk 0:01:51.1]} 23. Rxe3 {[%clk 0:00:31.5]} 23... Nd7 {[%clk
0:01:45.1]} 24. Rd1 {[%clk 0:00:27.7]} 24... Ne5 {[%clk 0:01:43.5]} 25. Ree1
{[%clk 0:00:12.2]} 25... f6 {[%clk 0:01:41.6]} 26. Nd5 {[%clk 0:00:11.2]} 26...
Kf8 {[%clk 0:01:33.6]} 27. Nc7 {[%clk 0:00:11]} 27... Rc8 {[%clk 0:01:21]} 28.
Nxe6+ {[%clk 0:00:10.3]} 28... Rxe6 {[%clk 0:01:21.9]} 29. Bb3 {[%clk
0:00:09.5]} 29... Re7 {[%clk 0:01:15.6]} 30. Bd5 {[%clk 0:00:09.3]} 30... b5
{[%clk 0:01:11.4]} 31. b3 {[%clk 0:00:09.3]} 31... Rd8 {[%clk 0:01:07.3]} 32.
Rc1 {[%clk 0:00:08.8]} 32... Rc7 {[%clk 0:01:06.2]} 33. Re3 {[%clk 0:00:08.6]}
33... Ke7 {[%clk 0:01:05.8]} 34. Rec3 {[%clk 0:00:08.7]} 34... Rdc8 {[%clk
0:01:05.3]} 35. g4 {[%clk 0:00:08.3]} 35... Nd7 {[%clk 0:00:53.6]} 36. Kg3
{[%clk 0:00:07.9]} 36... Nb6 {[%clk 0:00:53.2]} 37. Kf4 {[%clk 0:00:07.9]} 37...
Nxd5+ {[%clk 0:00:52]} 38. exd5 {[%clk 0:00:08.8]} 38... Kd6 {[%clk 0:00:52.1]}
39. Rd1 {[%clk 0:00:08.7]} 39... Re8 {[%clk 0:00:50.4]} 40. Re3 {[%clk
0:00:08.4]} 40... Rxe3 {[%clk 0:00:48.4]} 41. Kxe3 {[%clk 0:00:09.3]} 41... Re7+
{[%clk 0:00:48.5]} 42. Kd3 {[%clk 0:00:04.3]} 42... Kxd5 {[%clk 0:00:46.7]} 43.
Kc3+ {[%clk 0:00:04.5]} 43... Kc6 {[%clk 0:00:44.1]} 44. Rd2 {[%clk 0:00:03.2]}
44... Re3+ {[%clk 0:00:43]} 45. Kc2 {[%clk 0:00:03.1]} 45... Rg3 {[%clk
0:00:41.4]} 46. Re2 {[%clk 0:00:01.6]} 46... Kd6 {[%clk 0:00:38.4]} 47. Rd2+
{[%clk 0:00:01.7]} 47... Ke5 {[%clk 0:00:38.3]} 48. Re2+ {[%clk 0:00:02.6]}
48... Kd4 {[%clk 0:00:37.5]} 49. Rd2+ {[%clk 0:00:02.5]} 49... Ke4 {[%clk
0:00:37.7]} 50. Re2+ {[%clk 0:00:02.7]} 50... Re3 {[%clk 0:00:37.6]} 51. Rd2
{[%clk 0:00:02.4]} 51... c4 {[%clk 0:00:31.6]} 52. bxc4 {[%clk 0:00:02.2]} 52...
bxc4 {[%clk 0:00:32.1]} 53. Rd7 {[%clk 0:00:01.7]} 53... Rxa3 {[%clk 0:00:32]}
54. Rxg7 {[%clk 0:00:01.5]} 54... Ra2+ {[%clk 0:00:31.2]} 55. Kc3 {[%clk
0:00:01.6]} 55... Rxg2 {[%clk 0:00:31.4]} 56. Kxc4 {[%clk 0:00:01.8]} 56... h5
{[%clk 0:00:24.9]} 57. Re7+ {[%clk 0:00:01.6]} 57... Kf4 {[%clk 0:00:24.5]} 58.
gxh5 {[%clk 0:00:02.5]} 58... Rg5 {[%clk 0:00:18.7]} 59. Re6 {[%clk 0:00:02.5]}
59... Kf5 {[%clk 0:00:18.1]} 60. Rxa6 {[%clk 0:00:02.3]} 60... Rg3 {[%clk
0:00:12.2]} 61. h6 {[%clk 0:00:01.9]} 61... Rxh3 {[%clk 0:00:10.4]} 62. Kd4
{[%clk 0:00:02]} 62... Rxh6 {[%clk 0:00:09.7]} 63. Ke3 {[%clk 0:00:02.6]} 63...
Kg4 {[%clk 0:00:06.5]} 64. Kf2 {[%clk 0:00:02.8]} 64... Rh2+ {[%clk 0:00:04.5]}
65. Kg1 {[%clk 0:00:02.6]} 65... Rh6 {[%clk 0:00:04.5]} 66. Kf2 {[%clk
0:00:02.7]} 66... Rg6 {[%clk 0:00:03.8]} 67. Ra4+ {[%clk 0:00:02.4]} 67... Kg5
{[%clk 0:00:03.8]} 68. Ra5+ {[%clk 0:00:02.7]} 68... f5 {[%clk 0:00:04.3]} 69.
Kf3 {[%clk 0:00:03.6]} 69... Rb6 {[%clk 0:00:04.4]} 70. Rc5 {[%clk 0:00:02.5]}
70... Rb3+ {[%clk 0:00:04.6]} 71. Kf2 {[%clk 0:00:03]} 71... Kg4 {[%clk
0:00:04.5]} 72. Rc8 {[%clk 0:00:02.8]} 72... Rb2+ {[%clk 0:00:03.4]} 73. Kf1
{[%clk 0:00:03.1]} 73... Kf3 {[%clk 0:00:02.7]} 74. Rc3+ {[%clk 0:00:03.2]}
74... Ke4 {[%clk 0:00:03]} 75. Rc4+ {[%clk 0:00:03.6]} 75... Ke3 {[%clk
0:00:03.1]} 76. Rc3+ {[%clk 0:00:03.5]} 76... Kd4 {[%clk 0:00:03.1]} 77. Rc8
{[%clk 0:00:03.7]} 77... f4 {[%clk 0:00:02.8]} 78. Rd8+ {[%clk 0:00:03.8]} 78...
Ke3 {[%clk 0:00:02.3]} 79. Re8+ {[%clk 0:00:04.7]} 79... Kf3 {[%clk 0:00:02.2]}
80. Kg1 {[%clk 0:00:03.8]} 80... Rb1+ {[%clk 0:00:02.3]} 81. Kh2 {[%clk
0:00:04.1]} 81... Kf2 {[%clk 0:00:02.9]} 82. Rc8 {[%clk 0:00:03.4]} 82... Rb2
{[%clk 0:00:02.1]} 83. Rc2+ {[%clk 0:00:04.3]} 83... Rxc2 {[%clk 0:00:02.4]} 0-1

[Event "Late-Titled-Tuesday-Blitz-December-26-2023"]
[Site "Chess.com"]
[Date "2023.12.26"]
[Round "10"]
[White "anasta10"]
[Black "enriquetejedor"]
[Result "1-0"]
[WhiteElo "2621"]
[BlackElo "2705"]
[TimeControl "180+1"]
[EndTime "15:50:35 PST"]
[Termination "anasta10 won by resignation"]

1. Nf3 {[%clk 0:03:00.9]} 1... f5 {[%clk 0:02:58.2]} 2. d3 {[%clk 0:02:59.5]}
2... d6 {[%clk 0:02:54.8]} 3. Nc3 {[%clk 0:02:58.4]} 3... Nf6 {[%clk 0:02:55.7]}
4. e4 {[%clk 0:02:58.6]} 4... Nc6 {[%clk 0:02:56.5]} 5. g3 {[%clk 0:02:57.8]}
5... g6 {[%clk 0:02:54.3]} 6. Bg2 {[%clk 0:02:57.6]} 6... Bg7 {[%clk 0:02:53.1]}
7. h4 {[%clk 0:02:57.8]} 7... O-O {[%clk 0:02:53]} 8. Ng5 {[%clk 0:02:45.2]}
8... h6 {[%clk 0:02:52]} 9. Nh3 {[%clk 0:02:45.6]} 9... e5 {[%clk 0:02:51.8]}
10. h5 {[%clk 0:02:34.7]} 10... Nxh5 {[%clk 0:02:51.1]} 11. exf5 {[%clk
0:02:34.7]} 11... Qe8 {[%clk 0:02:46.3]} 12. fxg6 {[%clk 0:02:22.3]} 12... Qxg6
{[%clk 0:02:45.2]} 13. Be3 {[%clk 0:02:16]} 13... Nxg3 {[%clk 0:02:42.7]} 14.
Rg1 {[%clk 0:02:10.6]} 14... Bg4 {[%clk 0:02:39.4]} 15. Bd5+ {[%clk 0:01:55.2]}
15... Kh7 {[%clk 0:02:38.9]} 16. Rxg3 {[%clk 0:01:06.9]} 16... Bxd1 {[%clk
0:02:38.7]} 17. Rxg6 {[%clk 0:01:07.5]} 17... Bxc2 {[%clk 0:02:38.8]} 18. Be4
{[%clk 0:01:01.1]} 18... Rf7 {[%clk 0:02:12.2]} 19. Kd2 {[%clk 0:00:58]} 19...
Nb4 {[%clk 0:02:07.7]} 20. Rag1 {[%clk 0:00:52.6]} 20... Bxd3 {[%clk 0:02:06.3]}
21. Rxg7+ {[%clk 0:00:50.8]} 21... Kh8 {[%clk 0:02:06.3]} 22. Rxf7 {[%clk
0:00:49.5]} 22... Bxe4 {[%clk 0:02:01.7]} 23. Nxe4 {[%clk 0:00:50.4]} 23... Nd5
{[%clk 0:02:00.5]} 24. Rgg7 {[%clk 0:00:49.9]} 24... a5 {[%clk 0:01:55.2]} 25.
Bxh6 {[%clk 0:00:49.7]} 1-0

[Event "Late-Titled-Tuesday-Blitz-December-26-2023"]
[Site "Chess.com"]
[Date "2023.12.26"]
[Round "10"]
[White "BardArtem"]
[Black "DishonorOnYourCow"]
[Result "1-0"]
[WhiteElo "2680"]
[BlackElo "2558"]
[TimeControl "180+1"]
[EndTime "15:50:47 PST"]
[Termination "BardArtem won by resignation"]

1. e4 {[%clk 0:03:00.9]} 1... c5 {[%clk 0:03:00]} 2. c3 {[%clk 0:03:01.1]} 2...
Nf6 {[%clk 0:02:58.6]} 3. e5 {[%clk 0:03:01.2]} 3... Nd5 {[%clk 0:02:59]} 4. Nf3
{[%clk 0:03:01]} 4... Nc6 {[%clk 0:02:58.8]} 5. Bc4 {[%clk 0:03:00.8]} 5... Nb6
{[%clk 0:02:57.4]} 6. Bb3 {[%clk 0:03:00.7]} 6... d5 {[%clk 0:02:50.1]} 7. exd6
{[%clk 0:03:01.6]} 7... Qxd6 {[%clk 0:02:49.9]} 8. O-O {[%clk 0:03:01.9]} 8...
Bg4 {[%clk 0:02:42.7]} 9. Bxf7+ {[%clk 0:03:01.4]} 9... Kd8 {[%clk 0:02:19]} 10.
d4 {[%clk 0:02:44.4]} 10... cxd4 {[%clk 0:02:17.2]} 11. cxd4 {[%clk 0:02:33]}
11... Kc7 {[%clk 0:01:44.2]} 12. Nc3 {[%clk 0:02:30.3]} 12... Qf6 {[%clk
0:01:39.8]} 13. Bb3 {[%clk 0:02:17.7]} 13... e6 {[%clk 0:01:35.8]} 14. d5 {[%clk
0:01:49.3]} 14... Rd8 {[%clk 0:01:17.4]} 15. Bg5 {[%clk 0:01:38.8]} 15... Qxg5
{[%clk 0:00:45.6]} 16. Nxg5 {[%clk 0:01:37.3]} 16... Bxd1 {[%clk 0:00:45.3]} 17.
Nxe6+ {[%clk 0:01:37.6]} 17... Kc8 {[%clk 0:00:43.5]} 18. dxc6 {[%clk
0:01:33.2]} 1-0

[Event "Late-Titled-Tuesday-Blitz-December-26-2023"]
[Site "Chess.com"]
[Date "2023.12.26"]
[Round "10"]
[White "sheldons73tshirt"]
[Black "karinachess1"]
[Result "1-0"]
[WhiteElo "2690"]
[BlackElo "2570"]
[TimeControl "180+1"]
[EndTime "15:50:48 PST"]
[Termination "sheldons73tshirt won by resignation"]

1. e4 {[%clk 0:03:00]} 1... e5 {[%clk 0:02:59.6]} 2. Nf3 {[%clk 0:02:59.8]} 2...
Nc6 {[%clk 0:02:58]} 3. Nc3 {[%clk 0:03:00.4]} 3... Nf6 {[%clk 0:02:57.5]} 4.
Be2 {[%clk 0:03:00.7]} 4... d5 {[%clk 0:02:54]} 5. exd5 {[%clk 0:03:00.5]} 5...
Nxd5 {[%clk 0:02:54.9]} 6. O-O {[%clk 0:03:01]} 6... Be7 {[%clk 0:02:53.4]} 7.
Bb5 {[%clk 0:02:58.5]} 7... Nxc3 {[%clk 0:02:48]} 8. bxc3 {[%clk 0:02:56.7]}
8... Bd6 {[%clk 0:02:35.1]} 9. d4 {[%clk 0:02:48.9]} 9... exd4 {[%clk
0:02:23.8]} 10. Re1+ {[%clk 0:02:48.2]} 10... Be6 {[%clk 0:01:43.9]} 11. Nxd4
{[%clk 0:02:45.9]} 11... O-O {[%clk 0:01:40.8]} 12. Nxe6 {[%clk 0:02:25.2]}
12... fxe6 {[%clk 0:01:39.6]} 13. Qg4 {[%clk 0:02:25.2]} 13... e5 {[%clk
0:01:32.9]} 14. Rb1 {[%clk 0:02:20]} 14... Kh8 {[%clk 0:01:29.5]} 15. Bg5 {[%clk
0:02:17.1]} 15... Qc8 {[%clk 0:01:20.4]} 16. Qh4 {[%clk 0:02:08.1]} 16... Qe6
{[%clk 0:01:07.7]} 17. Bc4 {[%clk 0:01:57.9]} 17... Qf5 {[%clk 0:00:53.7]} 18.
Bd3 {[%clk 0:01:54.4]} 18... e4 {[%clk 0:00:42.9]} 19. Bxe4 {[%clk 0:01:52.2]}
19... Bxh2+ {[%clk 0:00:43.2]} 20. Kxh2 {[%clk 0:01:44.7]} 20... Qe5+ {[%clk
0:00:41.4]} 21. f4 {[%clk 0:01:41.4]} 1-0

[Event "Late-Titled-Tuesday-Blitz-December-26-2023"]
[Site "Chess.com"]
[Date "2023.12.26"]
[Round "10"]
[White "GP9isback23"]
[Black "Petukhov_Dmitry"]
[Result "1-0"]
[WhiteElo "2646"]
[BlackElo "2488"]
[TimeControl "180+1"]
[EndTime "15:51:20 PST"]
[Termination "GP9isback23 won by resignation"]

1. d4 {[%clk 0:03:00.9]} 1... Nf6 {[%clk 0:02:59.3]} 2. Nf3 {[%clk 0:03:00.7]}
2... g6 {[%clk 0:02:59.5]} 3. e3 {[%clk 0:03:00.6]} 3... Bg7 {[%clk 0:02:59.6]}
4. Be2 {[%clk 0:03:01.5]} 4... O-O {[%clk 0:02:59.9]} 5. O-O {[%clk 0:03:02.4]}
5... d5 {[%clk 0:02:59.5]} 6. c3 {[%clk 0:02:58]} 6... Ne4 {[%clk 0:02:57.9]} 7.
Nbd2 {[%clk 0:02:55.9]} 7... Nd7 {[%clk 0:02:57.1]} 8. Nxe4 {[%clk 0:02:53.6]}
8... dxe4 {[%clk 0:02:58]} 9. Nd2 {[%clk 0:02:54.3]} 9... f5 {[%clk 0:02:58.3]}
10. b3 {[%clk 0:02:50]} 10... e5 {[%clk 0:02:57]} 11. d5 {[%clk 0:02:46.3]}
11... c6 {[%clk 0:02:49.9]} 12. dxc6 {[%clk 0:02:44.6]} 12... bxc6 {[%clk
0:02:50.8]} 13. Ba3 {[%clk 0:02:43.6]} 13... c5 {[%clk 0:02:46.4]} 14. Qc2
{[%clk 0:02:39.2]} 14... Qc7 {[%clk 0:02:40.3]} 15. Rfd1 {[%clk 0:02:19.7]}
15... Bb7 {[%clk 0:02:39.6]} 16. Nc4 {[%clk 0:02:19.4]} 16... f4 {[%clk
0:02:32.5]} 17. Nd6 {[%clk 0:02:14.5]} 17... f3 {[%clk 0:02:31.6]} 18. Bc4+
{[%clk 0:02:14.8]} 18... Kh8 {[%clk 0:02:31.2]} 19. Nf7+ {[%clk 0:02:08.9]}
19... Rxf7 {[%clk 0:02:30.2]} 20. Bxf7 {[%clk 0:02:09.8]} 20... Nf6 {[%clk
0:02:06.9]} 21. Be6 {[%clk 0:02:01.8]} 21... Rf8 {[%clk 0:02:03]} 22. Qd2 {[%clk
0:01:55.1]} 22... Bc8 {[%clk 0:02:01.8]} 23. Qd6 {[%clk 0:01:50.8]} 23... Qa5
{[%clk 0:01:49.6]} 24. Bxc8 {[%clk 0:01:38.4]} 24... Rxc8 {[%clk 0:01:43.6]} 25.
Bb2 {[%clk 0:01:32.7]} 25... fxg2 {[%clk 0:01:34.1]} 26. c4 {[%clk 0:01:21.1]}
26... Ng4 {[%clk 0:01:00]} 27. Qe6 {[%clk 0:01:17.4]} 1-0

[Event "Late-Titled-Tuesday-Blitz-December-26-2023"]
[Site "Chess.com"]
[Date "2023.12.26"]
[Round "10"]
[White "Kaua18"]
[Black "djano"]
[Result "1-0"]
[WhiteElo "2569"]
[BlackElo "2643"]
[TimeControl "180+1"]
[EndTime "15:51:37 PST"]
[Termination "Kaua18 won by resignation"]

1. e4 {[%clk 0:03:00.9]} 1... c5 {[%clk 0:02:59.3]} 2. Nf3 {[%clk 0:02:59.4]}
2... Nc6 {[%clk 0:02:59.4]} 3. Nc3 {[%clk 0:02:58.8]} 3... Nf6 {[%clk
0:02:53.4]} 4. d4 {[%clk 0:02:54.1]} 4... cxd4 {[%clk 0:02:54.3]} 5. Nxd4 {[%clk
0:02:54.3]} 5... d6 {[%clk 0:02:54.8]} 6. Bg5 {[%clk 0:02:53.4]} 6... g6 {[%clk
0:02:53.7]} 7. Bb5 {[%clk 0:02:48.6]} 7... Bd7 {[%clk 0:02:53.4]} 8. Bxf6 {[%clk
0:02:48]} 8... exf6 {[%clk 0:02:53.3]} 9. O-O {[%clk 0:02:46.8]} 9... Bg7 {[%clk
0:02:52.2]} 10. Re1 {[%clk 0:02:45.3]} 10... O-O {[%clk 0:02:51.9]} 11. Nxc6
{[%clk 0:02:42.2]} 11... bxc6 {[%clk 0:02:51.9]} 12. Bc4 {[%clk 0:02:42]} 12...
Qe7 {[%clk 0:02:48.6]} 13. Qd3 {[%clk 0:02:38.6]} 13... Rab8 {[%clk 0:02:42.4]}
14. Bb3 {[%clk 0:02:37.2]} 14... Rfd8 {[%clk 0:02:42.7]} 15. Rad1 {[%clk
0:02:36.5]} 15... Bg4 {[%clk 0:02:41.8]} 16. f3 {[%clk 0:02:36.3]} 16... Be6
{[%clk 0:02:42]} 17. Qa6 {[%clk 0:02:34.1]} 17... Rb6 {[%clk 0:02:40.2]} 18. Qa3
{[%clk 0:02:33]} 18... Bxb3 {[%clk 0:02:37.2]} 19. axb3 {[%clk 0:02:31.8]} 19...
Qc7 {[%clk 0:02:33.8]} 20. Ra1 {[%clk 0:02:19.9]} 20... a6 {[%clk 0:02:32.3]}
21. Qa5 {[%clk 0:02:14.4]} 21... Bh6 {[%clk 0:02:25.8]} 22. Na4 {[%clk
0:01:53.8]} 22... Rb7 {[%clk 0:02:19.9]} 23. Qxc7 {[%clk 0:01:54.7]} 23... Rxc7
{[%clk 0:02:20.8]} 24. Red1 {[%clk 0:01:46.8]} 24... Kf8 {[%clk 0:02:18.5]} 25.
Rd3 {[%clk 0:01:45.6]} 25... Ke7 {[%clk 0:02:18.3]} 26. c4 {[%clk 0:01:45.3]}
26... Rb7 {[%clk 0:02:16.2]} 27. Rad1 {[%clk 0:01:38.2]} 27... Bf8 {[%clk
0:01:57.4]} 28. Kf1 {[%clk 0:01:21.2]} 28... Ke6 {[%clk 0:01:55.3]} 29. Nc5+
{[%clk 0:01:18.9]} 29... dxc5 {[%clk 0:01:53.2]} 30. Rxd8 {[%clk 0:01:19.2]}
30... Be7 {[%clk 0:01:43.7]} 31. Ra8 {[%clk 0:01:15.3]} 31... Rb6 {[%clk
0:01:40.1]} 32. Rd3 {[%clk 0:01:14.4]} 32... h5 {[%clk 0:01:25.6]} 33. f4 {[%clk
0:01:14.7]} 33... g5 {[%clk 0:01:24.7]} 34. g3 {[%clk 0:01:11.5]} 34... gxf4
{[%clk 0:01:22.2]} 35. gxf4 {[%clk 0:01:12.4]} 35... f5 {[%clk 0:01:22]} 36. e5
{[%clk 0:01:09.3]} 36... f6 {[%clk 0:01:21.1]} 37. Re3 {[%clk 0:01:07.6]} 37...
fxe5 {[%clk 0:01:15]} 38. Rxe5+ {[%clk 0:01:07.2]} 38... Kf6 {[%clk 0:01:15.6]}
39. Rh8 {[%clk 0:01:04.2]} 39... Bd6 {[%clk 0:01:15]} 40. Rh6+ {[%clk
0:01:03.3]} 40... Kg7 {[%clk 0:01:15.5]} 41. Rxd6 {[%clk 0:01:03.5]} 41... Rxb3
{[%clk 0:01:16.4]} 42. Re7+ {[%clk 0:01:03.7]} 42... Kf8 {[%clk 0:01:16.7]} 43.
Ra7 {[%clk 0:01:04.1]} 1-0